bitfinex-derivatives/quotes_BTCF0:USTF0_20250218
["timestamp","ask_amount","ask_price","bid_price","bid_amount"]
[1739907205958,0.2131405,93880.0,93875.0,0.5739509]
[1739907206149,0.3608,93887.0,93875.0,0.52065054]
[1739907206349,0.2131472,93877.0,93876.0,0.2131492]
[1739907207361,0.2131492,93876.0,93875.0,0.3619371]
[1739907208948,0.00015946,93886.0,93867.0,0.00015975]
[1739907208949,0.2131674,93868.0,93867.0,0.00015975]
[1739907209154,0.3608,93871.0,93858.0,0.87857771]
[1739907209461,0.2131878,93859.0,93858.0,0.87713771]
[1739907209660,0.2131924,93857.0,93856.0,0.05445878]
[1739907209855,0.2131946,93856.0,93855.0,0.3608]
[1739907210461,0.2131992,93854.0,93853.0,0.19134119]
[1739907210760,0.2121992,93854.0,93853.0,0.24400352]
[1739907211856,0.2121992,93854.0,93853.0,0.19234119]
[1739907212167,0.2121992,93854.0,93853.0,0.13904083]
[1739907212666,0.2132151,93847.0,93846.0,0.00015975]
[1739907213467,0.2122151,93847.0,93846.0,0.00015975]
[1739907214868,0.2132355,93838.0,93837.0,0.00159835]
[1739907215364,0.2132355,93838.0,93836.0,0.13848785]
[1739907216164,0.2132355,93838.0,93828.0,0.05217877]
[1739907216165,0.3608,93842.0,93828.0,0.05233861]
[1739907216370,0.213256,93829.0,93828.0,0.00015984]
[1739907216571,0.210256,93829.0,93828.0,0.00015984]
[1739907217367,0.207256,93829.0,93828.0,0.05453606]
[1739907217567,0.207256,93829.0,93828.0,0.00015984]
[1739907217762,0.207256,93829.0,93828.0,0.00515984]
[1739907218362,0.3608,93834.0,93817.0,0.2132831]
[1739907218556,0.2132682,93824.0,93820.0,0.2132758]
[1739907218754,0.2132682,93824.0,93814.0,0.36681169]
[1739907218959,0.2132682,93824.0,93821.0,0.2132741]
[1739907219159,0.3608,93832.0,93814.0,0.36681169]
[1739907219360,0.2132748,93821.0,93816.0,0.2132854]
[1739907219566,0.2132748,93821.0,93814.0,0.36697153]
[1739907219763,0.2132748,93821.0,93820.0,0.2132764]
[1739907220357,0.1944,93831.0,93814.0,0.36697153]
[1739907220560,0.2132639,93826.0,93814.0,0.36697153]
[1739907221070,0.002,93821.0,93820.0,0.2132751]
[1739907221270,0.002,93821.0,93820.0,0.15997474]
[1739907221470,0.2132698,93823.0,93820.0,0.15997474]
[1739907221666,0.1944,93831.0,93814.0,0.36697153]
[1739907222171,0.2132878,93815.0,93814.0,0.36697153]
[1739907222672,0.2132769,93820.0,93815.0,0.2132869]
[1739907222871,0.2132788,93819.0,93818.0,0.2132736]
[1739907224261,0.2152788,93819.0,93818.0,0.2132736]
[1739907224467,0.2152788,93819.0,93818.0,0.15997324]
[1739907224874,0.002,93819.0,93818.0,0.15997324]
[1739907226170,0.00015984,93824.0,93823.0,0.2132696]
[1739907226372,0.00015984,93824.0,93823.0,0.5740696]
[1739907226971,0.4183265,93842.0,93835.0,0.2132414]
[1739907227171,0.2051,93842.0,93834.0,0.3608]
[1739907227367,0.2132407,93836.0,93834.0,0.3608]
[1739907227568,0.2051,93842.0,93836.0,0.2132389]
[1739907227763,0.2132423,93835.0,93834.0,0.3608]
[1739907228566,0.0533079,93840.0,93826.0,0.213262]
[1739907228771,0.2132605,93827.0,93826.0,0.213262]
[1739907228974,0.2132649,93826.0,93824.0,0.2039]
[1739907229274,0.3608,93841.0,93824.0,0.2039]
[1739907229275,0.2132651,93825.0,93824.0,0.2039]
[1739907229574,0.2132651,93825.0,93824.0,0.4171673]
[1739907229965,0.3608,93841.0,93829.0,0.2132554]
[1739907230272,0.2132514,93831.0,93830.0,0.13102096]
[1739907230474,0.2132537,93830.0,93829.0,0.15995504]
[1739907231063,0.2132537,93830.0,93829.0,0.1617305]
[1739907232179,0.004,93841.0,93833.0,0.2132455]
[1739907232363,0.2132398,93837.0,93833.0,0.2132455]
[1739907232673,0.2132402,93836.0,93833.0,0.2132455]
[1739907232873,0.004,93841.0,93832.0,0.3608]
[1739907233074,0.2132378,93837.0,93836.0,0.00177546]
[1739907233471,0.2132378,93837.0,93832.0,0.3608]
[1739907233472,0.2132378,93837.0,93833.0,0.2132465]
[1739907233675,0.2051,93842.0,93833.0,0.2132465]
[1739907233974,0.2172411,93836.0,93832.0,0.3092751]
[1739907234376,0.2132411,93836.0,93830.0,0.13102096]
[1739907234572,0.2132411,93836.0,93832.0,0.2132492]
[1739907234775,0.005,93837.0,93831.0,0.3608]
[1739907234776,0.005,93837.0,93835.0,0.2132415]
[1739907235773,0.2051,93842.0,93840.0,0.2132301]
[1739907235975,0.2091,93842.0,93840.0,0.2132301]
[1739907236381,0.2051,93842.0,93834.0,0.2132434]
[1739907236689,0.005,93837.0,93835.0,0.2132413]
[1739907237180,0.2121,93842.0,93835.0,0.2132413]
[1739907237772,0.2132338,93839.0,93831.0,0.5740505]
[1739907237977,0.2132338,93839.0,93831.0,0.3608]
[1739907239273,0.2162338,93839.0,93831.0,0.3608]
[1739907239474,0.2162338,93839.0,93831.0,0.30749964]
[1739907239667,0.003,93839.0,93831.0,0.30749964]
[1739907239875,0.2132473,93833.0,93831.0,0.30749964]
[1739907240271,0.2132473,93833.0,93831.0,0.52075064]
[1739907240577,0.2132473,93833.0,93831.0,0.30749964]
[1739907241571,0.003,93839.0,93831.0,0.30749964]
[1739907241774,0.4180492,93832.0,93831.0,0.30749964]
[1739907242676,0.4180492,93832.0,93831.0,0.25419928]
[1739907243080,0.2132661,93825.0,93822.0,0.2132718]
[1739907243275,0.2048,93832.0,93821.0,0.3608]
[1739907243276,0.2132719,93822.0,93821.0,0.3608]
[1739907245582,0.4131,93824.0,93815.0,0.13102096]
[1739907245783,0.2132798,93819.0,93816.0,0.2132851]
[1739907245984,0.2132811,93818.0,93816.0,0.2132851]
[1739907247378,0.4131,93824.0,93823.0,0.2132696]
[1739907247778,0.4131,93824.0,93814.0,0.05256729]
[1739907247779,0.6263673,93824.0,93817.0,0.2132823]
[1739907247987,0.6263673,93824.0,93814.0,0.05256729]
[1739907248279,0.6263673,93824.0,93820.0,0.2132757]
[1739907248585,0.6263673,93824.0,93820.0,0.15997534]
[1739907248884,0.4131,93824.0,93820.0,0.15997534]
[1739907249080,0.21327,93823.0,93820.0,0.15997534]
[1739907250381,0.21527,93823.0,93820.0,0.15997534]
[1739907250778,0.002,93823.0,93814.0,0.26585529]
[1739907250980,0.213279,93819.0,93814.0,0.26585529]
[1739907251376,0.213279,93819.0,93814.0,0.05256729]
[1739907251780,0.213279,93819.0,93812.0,0.36006693]
[1739907251982,0.213279,93819.0,93817.0,0.2132811]
[1739907252287,0.213279,93819.0,93812.0,0.36006693]
[1739907252487,0.2132888,93815.0,93812.0,0.36006693]
[1739907252683,0.2132779,93820.0,93812.0,0.36006693]
[1739907252889,0.2132779,93820.0,93817.0,0.213283]
[1739907253092,0.2132779,93820.0,93819.0,0.2132787]
[1739907254481,0.00015984,93823.0,93821.0,0.213272]
[1739907254685,0.21342954,93823.0,93821.0,0.15997164]
[1739907254882,0.2132719,93822.0,93821.0,0.15997164]
[1739907256188,0.2152719,93822.0,93821.0,0.15997164]
[1739907256683,0.2132719,93822.0,93821.0,0.15997164]
[1739907256989,0.2142719,93822.0,93821.0,0.15997164]
[1739907257488,0.2132804,93819.0,93812.0,0.41234315]
[1739907257789,0.2132804,93819.0,93818.0,0.15998064]
[1739907258490,0.2132924,93813.0,93812.0,0.41234315]
[1739907258791,0.2132924,93813.0,93812.0,0.62563775]
[1739907258988,0.2132924,93813.0,93812.0,0.41234315]
[1739907260085,0.2142924,93813.0,93812.0,0.41234315]
[1739907260291,0.2142924,93813.0,93812.0,0.62563775]
[1739907260487,0.2142924,93813.0,93812.0,0.41234315]
[1739907260793,0.2142924,93813.0,93812.0,0.35904279]
[1739907261592,0.2142924,93813.0,93812.0,0.57233739]
[1739907263095,0.001,93813.0,93812.0,0.57233739]
[1739907263684,0.2142924,93813.0,93812.0,0.57233739]
[1739907263890,0.2142924,93813.0,93812.0,0.51903703]
[1739907264590,0.00015984,93823.0,93812.0,0.30574243]
[1739907264795,0.001,93813.0,93812.0,0.51903703]
[1739907265194,0.00015984,93823.0,93812.0,0.30574243]
[1739907265394,0.00015984,93823.0,93822.0,0.2132719]
[1739907265697,0.21342944,93823.0,93822.0,0.2132719]
[1739907266095,0.00015984,93823.0,93822.0,0.2132719]
[1739907266299,0.20354717,93824.0,93823.0,0.2132696]
[1739907266495,0.3608,93856.0,93833.0,0.0533116]
[1739907266701,0.213212,93849.0,93845.0,0.3608]
[1739907266997,0.213212,93849.0,93845.0,0.52071714]
[1739907267183,0.3608,93856.0,93845.0,0.52071714]
[1739907267390,0.2132288,93841.0,93838.0,0.34425576]
[1739907267591,0.2132288,93841.0,93839.0,0.00015984]
[1739907267996,0.2132182,93846.0,93839.0,0.00015984]
[1739907268197,0.22135278,93842.0,93841.0,0.2132287]
[1739907269994,0.22135278,93842.0,93841.0,0.15992834]
[1739907270593,0.22135278,93842.0,93841.0,0.52072834]
[1739907271303,0.22335278,93842.0,93841.0,0.52072834]
[1739907271801,0.22135278,93842.0,93841.0,0.52072834]
[1739907272102,0.22335278,93842.0,93841.0,0.52072834]
[1739907272506,0.213231,93840.0,93839.0,0.00015984]
[1739907272903,0.213231,93840.0,93830.0,0.29113344]
[1739907273098,0.3993,93841.0,93830.0,0.13102096]
[1739907273099,0.1996,93839.0,93830.0,0.13102096]
[1739907273496,0.1996,93839.0,93837.0,0.2132358]
[1739907274109,0.002,93842.0,93841.0,0.2132287]
[1739907274410,0.002,93842.0,93834.0,0.2132433]
[1739907274603,0.213225,93843.0,93834.0,0.2132433]
[1739907274798,0.1996,93845.0,93838.0,0.2132345]
[1739907275193,0.2132246,93843.0,93836.0,0.2132381]
[1739907275404,0.002,93842.0,93837.0,0.2132373]
[1739907275796,0.2132246,93843.0,93835.0,0.13102096]
[1739907276000,0.2132246,93843.0,93838.0,0.15993464]
[1739907276403,0.2142246,93843.0,93838.0,0.15993464]
[1739907276707,0.2142246,93843.0,93835.0,0.13102096]
[1739907277109,0.001,93843.0,93835.0,0.13102096]
[1739907277305,0.001,93843.0,93841.0,0.2132283]
[1739907277813,0.1996,93845.0,93841.0,0.2132283]
[1739907278306,0.1996,93845.0,93835.0,0.34426266]
[1739907278502,0.002,93843.0,93835.0,0.34426266]
[1739907278812,0.002,93843.0,93836.0,0.2132398]
[1739907279007,0.2132222,93844.0,93836.0,0.15993944]
[1739907279314,0.2132244,93843.0,93836.0,0.15993944]
[1739907279610,0.2142244,93843.0,93836.0,0.15993944]
[1739907280004,0.57404,93837.0,93835.0,0.13102096]
[1739907280209,0.2132537,93830.0,93829.0,0.00015984]
[1739907281912,0.2162537,93830.0,93829.0,0.00015984]
[1739907282104,0.2162537,93830.0,93820.0,0.07947895]
[1739907282105,0.2132626,93827.0,93820.0,0.07947895]
[1739907282305,0.2038,93832.0,93820.0,0.07947895]
[1739907282506,0.004,93830.0,93820.0,0.07947895]
[1739907283607,0.004,93830.0,93824.0,0.3608]
[1739907283810,0.004,93830.0,93828.0,0.2132573]
[1739907284013,0.006,93830.0,93828.0,0.2132573]
[1739907284610,0.00015984,93834.0,93831.0,0.2132514]
[1739907285113,0.00015984,93834.0,93831.0,0.15995104]
[1739907285413,0.00015984,93834.0,93832.0,0.2132481]
[1739907286407,0.00015984,93834.0,93833.0,0.4053]
[1739907287212,0.00300001,93834.0,93833.0,0.4053]
[1739907287715,1e-08,93834.0,93833.0,0.4053]
[1739907287909,0.00400001,93834.0,93833.0,0.4053]
[1739907288112,0.00400001,93834.0,93833.0,0.35199964]
[1739907288313,0.00400001,93834.0,93833.0,0.46643964]
[1739907289614,0.0313123,93841.0,93833.0,0.46643964]
[1739907289821,0.0313123,93841.0,93839.0,0.2132329]
[1739907290117,0.0313123,93841.0,93834.0,0.2132444]
[1739907290712,0.0313123,93841.0,93831.0,0.13102096]
[1739907290912,0.2132444,93835.0,93831.0,0.13102096]
[1739907291111,0.2132444,93835.0,93825.0,0.33742096]
[1739907291112,0.1959,93834.0,93825.0,0.33742096]
[1739907291308,0.1959,93834.0,93825.0,0.2841206]
[1739907291715,0.1959,93834.0,93832.0,0.2132485]
[1739907293113,0.1959,93834.0,93833.0,0.2132469]
[1739907293318,0.003,93835.0,93834.0,0.2132446]
[1739907293519,0.6022,93850.0,93846.0,0.2132174]
[1739907293716,0.3608,93863.0,93846.0,0.2132174]
[1739907293906,0.5825,93862.0,93846.0,0.2132174]
[1739907294219,0.5825,93862.0,93858.0,0.15988974]
[1739907294220,0.1435202,93859.0,93858.0,0.15988974]
[1739907294421,0.00311211,93859.0,93858.0,0.15988974]
[1739907294721,0.00311211,93859.0,93858.0,0.21439459]
[1739907295424,0.3878,93862.0,93861.0,0.2131833]
[1739907295822,0.00015984,93868.0,93866.0,0.2131697]
[1739907296319,0.00015984,93868.0,93859.0,0.2061]
[1739907296320,0.00015984,93868.0,93867.0,0.2131697]
[1739907297322,0.00015984,93868.0,93867.0,0.15986934]
[1739907297523,0.00315984,93868.0,93867.0,0.15986934]
[1739907300312,0.00315984,93868.0,93867.0,0.10656898]
[1739907300518,0.1944,93880.0,93879.0,0.2131424]
[1739907300719,0.1934,93883.0,93882.0,0.2131356]
[1739907301314,0.2134,93894.0,93887.0,0.2131242]
[1739907301721,0.2131168,93891.0,93887.0,0.2131242]
[1739907301918,0.2131182,93890.0,93887.0,0.2131242]
[1739907302114,0.2134,93894.0,93893.0,0.2131106]
[1739907303323,0.2134,93894.0,93893.0,0.15981024]
[1739907303820,0.2174,93894.0,93893.0,0.16081024]
[1739907304413,0.18057522,93901.0,93900.0,0.2130947]
[1739907304618,0.2026,93909.0,93894.0,0.2009]
[1739907304824,0.2026,93909.0,93904.0,0.2130849]
[1739907305124,0.2130824,93906.0,93899.0,0.34411716]
[1739907305324,0.5634,93909.0,93899.0,0.13102096]
[1739907305519,0.5634,93909.0,93893.0,0.3618]
[1739907305720,0.3608,93901.0,93895.0,0.00015976]
[1739907305920,0.2130995,93898.0,93895.0,0.00015976]
[1739907306322,0.207,93900.0,93890.0,0.34413616]
[1739907306623,0.2131016,93897.0,93890.0,0.34413616]
[1739907306924,0.1937,93896.0,93890.0,0.13102096]
[1739907307227,0.1937,93896.0,93895.0,0.2131061]
[1739907307619,0.1937,93896.0,93890.0,0.13102096]
[1739907307819,0.1937,93896.0,93893.0,0.001]
[1739907308521,0.3608,93921.0,93893.0,0.3618]
[1739907308722,0.001,93909.0,93901.0,0.3608]
[1739907308917,0.001,93909.0,93902.0,0.4187]
[1739907309126,0.001,93909.0,93908.0,0.2130766]
[1739907309425,0.2088,93912.0,93902.0,0.36539964]
[1739907309616,0.2088,93912.0,93909.0,0.2130739]
[1739907311117,0.2088,93912.0,93902.0,0.36539964]
[1739907311323,0.2088,93912.0,93904.0,0.2130845]
[1739907311623,0.2088,93912.0,93902.0,0.2109]
[1739907311818,0.2088,93912.0,93907.0,0.2130785]
[1739907312023,0.2088,93912.0,93902.0,0.2109]
[1739907312219,0.2108,93912.0,93909.0,0.001]
[1739907312523,0.2108,93912.0,93909.0,0.06201964]
[1739907312724,0.2088,93912.0,93906.0,0.2130806]
[1739907312927,0.2088,93912.0,93902.0,0.2109]
[1739907312928,0.002,93912.0,93911.0,0.2130698]
[1739907313825,0.00015929,93913.0,93912.0,0.2130675]
[1739907315224,0.3608,93942.0,93909.0,0.3608]
[1739907315425,0.5738,93942.0,93936.0,0.15971164]
[1739907315631,0.213003,93941.0,93936.0,0.15971164]
[1739907315836,0.2130057,93940.0,93936.0,0.15971164]
[1739907316026,0.3608,93942.0,93930.0,0.13102096]
[1739907316222,0.3608,93942.0,93932.0,0.2130216]
[1739907316422,0.3608,93942.0,93930.0,0.13102096]
[1739907316626,0.1998,93941.0,93936.0,0.001]
[1739907317029,0.2130114,93937.0,93932.0,0.2130221]
[1739907317437,0.2130165,93935.0,93930.0,0.13202096]
[1739907317830,0.2130201,93933.0,93930.0,0.13202096]
[1739907318034,0.2130201,93933.0,93930.0,0.001]
[1739907318429,0.4243,93940.0,93925.0,0.1613594]
[1739907318635,0.4243,93940.0,93931.0,0.2130233]
[1739907318838,0.2130111,93937.0,93936.0,0.001]
[1739907319036,0.4243,93940.0,93936.0,0.001]
[1739907319238,0.4243,93940.0,93933.0,0.2130188]
[1739907319437,0.2130178,93934.0,93930.0,0.13202096]
[1739907319743,0.4243,93940.0,93927.0,0.00015976]
[1739907319935,0.4263,93940.0,93931.0,0.001]
[1739907320433,0.2130196,93934.0,93933.0,0.001]
[1739907320633,0.4263,93940.0,93933.0,0.001]
[1739907320833,0.2130149,93936.0,93933.0,0.001]
[1739907321034,0.4263,93940.0,93933.0,0.2140193]
[1739907321240,0.4263,93940.0,93936.0,0.2130124]
[1739907321436,0.4263,93940.0,93933.0,0.001]
[1739907321637,0.2130132,93936.0,93931.0,0.16072294]
[1739907321831,0.2130132,93936.0,93930.0,0.13102096]
[1739907322137,0.2130132,93936.0,93931.0,0.001]
[1739907322337,0.4283,93940.0,93931.0,0.001]
[1739907322534,0.4243,93940.0,93930.0,0.13102096]
[1739907322840,0.5738176,93934.0,93933.0,0.001]
[1739907323041,0.3608,93934.0,93933.0,0.001]
[1739907323344,0.3608,93934.0,93933.0,0.2130199]
[1739907323737,0.4243,93940.0,93935.0,0.2130149]
[1739907324037,0.4283,93940.0,93935.0,0.2130149]
[1739907324227,0.4283,93940.0,93939.0,0.2130063]
[1739907324631,0.4283,93940.0,93930.0,0.26304192]
[1739907324942,0.4283,93940.0,93935.0,0.213015]
[1739907325240,0.4243,93940.0,93936.0,0.213012]
[1739907325538,0.4243,93940.0,93933.0,0.001]
[1739907325741,0.4243,93940.0,93931.0,0.2130228]
[1739907325943,0.2130066,93939.0,93931.0,0.2130228]
[1739907326136,0.2130066,93939.0,93930.0,0.13202096]
[1739907326538,0.2130157,93935.0,93930.0,0.13202096]
[1739907326741,0.4293,93940.0,93930.0,0.13202096]
[1739907326932,0.4243,93940.0,93930.0,0.13102096]
[1739907327133,0.2130108,93937.0,93936.0,0.001]
[1739907327433,0.2130312,93928.0,93927.0,0.00015976]
[1739907327634,0.213034,93927.0,93921.0,0.8765794]
[1739907327947,0.2130277,93930.0,93926.0,0.3608]
[1739907328241,0.2130448,93922.0,93921.0,0.8765794]
[1739907328438,0.2120448,93922.0,93921.0,0.8750994]
[1739907329737,0.2150448,93922.0,93921.0,0.8750994]
[1739907329939,0.22,93940.0,93921.0,1.2883921]
[1739907330133,0.433004,93940.0,93934.0,0.3608]
[1739907330537,0.2015,93939.0,93930.0,0.13102096]
[1739907330742,0.2015,93939.0,93921.0,0.0524927]
[1739907330941,0.3608,93931.0,93920.0,0.13102096]
[1739907331242,0.3608,93931.0,93920.0,0.18528681]
[1739907331634,0.3598,93931.0,93920.0,0.18528681]
[1739907331834,0.2130385,93925.0,93920.0,0.18528681]
[1739907332040,0.4128,93924.0,93920.0,0.18528681]
[1739907332545,0.213046,93922.0,93920.0,0.18528681]
[1739907332943,0.213046,93922.0,93920.0,0.05426585]
[1739907333244,0.213046,93922.0,93912.0,0.13118072]
[1739907333739,0.4158,93924.0,93912.0,0.13206627]
[1739907334047,0.2130563,93917.0,93912.0,0.13206627]
[1739907334254,0.2130641,93914.0,93912.0,0.13206627]
[1739907334434,0.2130641,93914.0,93912.0,0.05418591]
[1739907334636,0.2130641,93914.0,93906.0,0.92972]
[1739907334837,0.2130641,93914.0,93906.0,0.92824]
[1739907335540,0.001,93914.0,93906.0,0.92824]
[1739907335942,0.2130769,93908.0,93906.0,0.98188762]
[1739907336242,0.4161,93907.0,93906.0,0.05464762]
[1739907336949,0.0532722,93903.0,93871.0,0.2195]
[1739907337155,0.3608,93894.0,93880.0,0.13102096]
[1739907337542,0.2131309,93885.0,93880.0,0.13102096]
[1739907338043,0.2131309,93885.0,93878.0,0.3608]
[1739907338252,0.2056,93884.0,93875.0,0.31905747]
[1739907338437,0.2056,93884.0,93883.0,0.307301]
[1739907338641,0.2056,93884.0,93883.0,0.05342252]
[1739907338642,0.2046,93884.0,93883.0,0.05342252]
[1739907338847,0.2046,93884.0,93875.0,0.19137257]
[1739907339050,0.2131628,93870.0,93868.0,0.25387848]
[1739907339248,0.2121628,93870.0,93868.0,0.25387848]
[1739907339847,0.2121628,93870.0,93868.0,0.25484278]
[1739907340050,0.2121628,93870.0,93868.0,0.20057812]
[1739907340441,0.2131821,93862.0,93860.0,0.00010648]
[1739907340753,0.3608,93861.0,93860.0,0.00010648]
[1739907341048,0.18694766,93861.0,93860.0,0.00010648]
[1739907341250,0.18694766,93861.0,93850.0,0.51410182]
[1739907341251,0.213206,93851.0,93850.0,0.38308086]
[1739907341943,0.18694766,93861.0,93850.0,0.38308086]
[1739907342142,0.18994766,93861.0,93850.0,0.51410182]
[1739907342343,0.40313206,93861.0,93850.0,0.51410182]
[1739907342745,0.003,93851.0,93850.0,0.46080146]
[1739907343052,0.003,93851.0,93850.0,0.3297805]
[1739907343253,0.003,93851.0,93845.0,0.04476747]
[1739907343450,0.003,93851.0,93846.0,0.217]
[1739907344249,0.2131939,93857.0,93846.0,0.217]
[1739907344550,0.13102096,93860.0,93845.0,0.04466817]
[1739907344754,0.2131994,93854.0,93842.0,0.5648]
[1739907345053,0.003,93851.0,93842.0,0.5648]
[1739907345252,0.3608,93850.0,93840.0,0.13102096]
[1739907345757,0.3608,93850.0,93840.0,0.0777206]
[1739907346147,0.3608,93850.0,93840.0,0.1219049]
[1739907346656,0.3608,93850.0,93841.0,0.2086]
[1739907348449,0.3628,93850.0,93841.0,0.2086]
[1739907348848,0.3638,93850.0,93841.0,0.15529964]
[1739907350658,0.003,93850.0,93848.0,0.3608]
[1739907350854,0.003,93850.0,93849.0,0.2205]
[1739907351060,0.003,93850.0,93849.0,0.4345]
[1739907351858,0.003,93850.0,93849.0,0.38119964]
[1739907352049,0.00015976,93870.0,93861.0,0.2131821]
[1739907352251,0.3608,93889.0,93875.0,0.13102096]
[1739907352450,0.2131348,93883.0,93875.0,0.13102096]
[1739907353254,0.3608,93880.0,93875.0,0.13102096]
[1739907353661,0.3608,93880.0,93875.0,0.17647618]
[1739907354860,0.3608,93880.0,93875.0,0.12317582]
[1739907355457,0.3608,93880.0,93876.0,0.201]
[1739907356162,0.5739419,93880.0,93876.0,0.201]
[1739907357055,0.2131419,93880.0,93876.0,0.201]
[1739907357963,0.2131419,93880.0,93876.0,0.14769964]
[1739907358157,0.2141419,93880.0,93876.0,0.14769964]
[1739907358557,0.2131439,93879.0,93876.0,0.14769964]
[1739907359563,0.36095976,93888.0,93876.0,0.14769964]
[1739907359767,0.2131296,93885.0,93878.0,0.13102096]
[1739907360263,0.001,93880.0,93876.0,0.36084774]
[1739907360952,0.2131455,93878.0,93876.0,0.09439928]
[1739907361363,0.36095976,93888.0,93876.0,0.09439928]
[1739907361663,0.002,93885.0,93878.0,0.13102096]
[1739907361866,0.002,93885.0,93879.0,0.2131421]
[1739907362066,0.3608,93907.0,93879.0,0.3608]
[1739907362368,0.2130634,93914.0,93897.0,0.13102096]
[1739907362677,0.2130634,93914.0,93900.0,0.26204192]
[1739907362872,0.2130634,93914.0,93900.0,0.13102096]
[1739907363164,0.2130675,93913.0,93900.0,0.49182096]
[1739907363365,0.2130675,93913.0,93903.0,0.13102096]
[1739907363673,0.2130695,93912.0,93903.0,0.13102096]
[1739907363873,0.22135278,93904.0,93903.0,0.13102096]
[1739907364065,0.22135278,93904.0,93903.0,0.0777206]
[1739907364271,0.22135278,93904.0,93900.0,0.3618]
[1739907364476,0.22135278,93904.0,93903.0,0.001]
[1739907364978,0.22535278,93904.0,93903.0,0.001]
[1739907365374,0.43843848,93904.0,93903.0,0.001]
[1739907365675,0.43843848,93904.0,93898.0,0.00015976]
[1739907365676,0.58615278,93904.0,93898.0,0.00015976]
[1739907365881,0.2130961,93900.0,93898.0,0.00015976]
[1739907366174,0.22535278,93904.0,93898.0,0.00015976]
[1739907367174,0.004,93904.0,93897.0,0.35243857]
[1739907367576,0.36095976,93916.0,93898.0,0.001]
[1739907367874,0.36095976,93916.0,93907.0,0.2130781]
[1739907368071,0.36095976,93916.0,93908.0,0.2125]
[1739907368584,0.00015976,93916.0,93908.0,0.2125]
[1739907368776,0.00215976,93916.0,93914.0,0.5738612]
[1739907369284,0.3608,93927.0,93925.0,0.2130364]
[1739907369478,0.3608,93927.0,93926.0,0.2125]
[1739907369875,0.2045,93944.0,93926.0,0.2125]
[1739907370173,0.2045,93944.0,93930.0,0.30761417]
[1739907370382,0.22135278,93943.0,93930.0,0.213025]
[1739907370679,0.00015976,93940.0,93933.0,0.13102096]
[1739907370876,0.3608,93935.0,93930.0,0.04578428]
[1739907371184,0.3608,93935.0,93927.0,0.00015976]
[1739907371774,0.2130133,93936.0,93927.0,0.00015976]
[1739907372081,0.3608,93935.0,93927.0,0.00015976]
[1739907372475,0.002,93932.0,93930.0,0.213025]
[1739907373183,0.002,93932.0,93930.0,0.15983917]
[1739907374076,0.002,93936.0,93928.0,0.206]
[1739907374275,0.002,93936.0,93934.0,0.2130166]
[1739907375083,0.00015976,93940.0,93939.0,0.2130063]
[1739907375286,0.00015976,93940.0,93939.0,0.5738063]
[1739907375587,0.00015976,93940.0,93939.0,0.3608]
[1739907375789,0.00015976,93940.0,93930.0,0.3608]
[1739907375790,0.00015976,93940.0,93934.0,0.004]
[1739907376171,0.00015976,93940.0,93930.0,0.72217587]
[1739907376474,0.00015976,93940.0,93930.0,0.72069587]
[1739907376672,0.00015976,93940.0,93931.0,0.2130236]
[1739907377282,0.00015976,93940.0,93939.0,0.001]
[1739907377783,0.00015976,93940.0,93938.0,0.213007]
[1739907378381,0.00015976,93940.0,93930.0,0.50766997]
[1739907378589,0.00015976,93940.0,93931.0,0.2130237]
[1739907379080,0.00015976,93940.0,93930.0,0.50766997]
[1739907379273,0.00015976,93940.0,93930.0,0.45448414]
[1739907380084,0.00115976,93940.0,93930.0,0.45448414]
[1739907380292,0.00115976,93940.0,93933.0,0.2130188]
[1739907380596,0.00015976,93940.0,93936.0,0.2130122]
[1739907381091,0.21316406,93940.0,93930.0,0.45748414]
[1739907381283,0.21316406,93940.0,93930.0,0.45648414]
[1739907381890,0.00015976,93940.0,93937.0,0.2130106]
[1739907382090,0.00015976,93940.0,93938.0,0.2047]
[1739907382291,0.00015976,93940.0,93938.0,0.36452167]
[1739907384689,0.00015976,93940.0,93938.0,0.36552167]
[1739907385288,0.00015976,93940.0,93938.0,0.31233584]
[1739907386185,0.00015976,93940.0,93938.0,0.09832834]
[1739907386785,0.00015976,93940.0,93938.0,0.09932834]
[1739907388290,0.00015976,93940.0,93938.0,0.25915001]
[1739907389293,0.3608,93949.0,93939.0,0.3608]
[1739907389490,0.3608,93949.0,93945.0,0.2129912]
[1739907389688,0.3608,93949.0,93946.0,0.6387895]
[1739907390794,0.3608,93949.0,93947.0,0.2129874]
[1739907391379,0.3608,93949.0,93947.0,0.15980157]
[1739907391795,0.00015967,93957.0,93952.0,0.2129746]
[1739907392594,0.002,93949.0,93948.0,0.3608]
[1739907392891,0.002,93949.0,93948.0,0.49812]
[1739907393090,0.00015967,93957.0,93948.0,0.49812]
[1739907393293,0.00215967,93957.0,93946.0,0.4258]
[1739907393595,0.00215967,93957.0,93930.0,0.49141432]
[1739907393596,0.3608,93948.0,93947.0,0.13732]
[1739907394092,0.3608,93948.0,93938.0,0.17575683]
[1739907394397,0.3608,93948.0,93928.0,0.2195]
[1739907394398,0.2130124,93937.0,93928.0,0.2195]
[1739907394589,0.3608,93932.0,93928.0,0.2195]
[1739907395198,0.5738242,93932.0,93928.0,0.2195]
[1739907395391,0.5738242,93932.0,93927.0,0.17508333]
[1739907395392,0.2130306,93929.0,93927.0,0.04446901]
[1739907395795,0.2130306,93929.0,93927.0,0.00015976]
[1739907395987,0.3608,93928.0,93921.0,0.04480525]
[1739907396194,0.3608,93922.0,93900.0,0.13061432]
[1739907396494,0.5688675,93912.0,93900.0,0.13061432]
[1739907396800,0.5688675,93912.0,93911.0,0.04688128]
[1739907396995,0.5688675,93912.0,93911.0,0.00159719]
[1739907397393,0.2130841,93905.0,93900.0,0.1247648]
[1739907397591,0.3608,93901.0,93900.0,0.1247648]
[1739907397794,0.3608,93901.0,93896.0,0.36158545]
[1739907398695,0.3608,93904.0,93896.0,0.36158545]
[1739907399199,0.3608,93904.0,93899.0,0.213095]
[1739907399394,0.00015967,93908.0,93899.0,0.213095]
[1739907399696,0.00015967,93908.0,93898.0,0.26122864]
[1739907399996,0.05177563,93912.0,93906.0,0.21308]
[1739907400388,0.05177563,93912.0,93907.0,0.36871417]
[1739907400592,0.05177563,93912.0,93910.0,0.2130701]
[1739907401496,0.05177563,93912.0,93911.0,1.5]
[1739907401693,0.05177563,93912.0,93911.0,1.8608]
[1739907402590,0.001,93912.0,93911.0,0.3608]
[1739907402791,0.001,93912.0,93911.0,0.49672]
[1739907402988,0.00015967,93920.0,93911.0,0.49672]
[1739907403190,0.00015967,93920.0,93919.0,0.2130516]